Workbook

Sheet Раздел3_1
B2: Раздел 3. Финансово-экономическая деятельность организации
B4: 3.1. Распределение объема средств организации по источникам их получения и видам деятельности
F5: Код по ОКЕИ: тысяча рублей – 384 (с одним десятичным знаком)
B6: Наименование показателей | C6: № строки | D6: Всего (сумма гр. 4, 5) | E6: в том числе по видам деятельности
E7: образовательная | F7: прочие виды
B8: 1 | C8: 2 | D8: 3 | E8: 4 | F8: 5
B9: Объем поступивших средств (за отчетный год) – всего (сумма строк 02, 06, 07, 08, 09) | C9: 01 | D9: =D10+D14+D15+D16+D17 -> 60,630.5 | E9: =E10+E14+E15+E16+E17 -> 59,285.0 | F9: =F10+F14+F15+F16+F17 -> 1,345.5
B10: в том числе средства: бюджетов всех уровней (субсидий) – всего (сумма строк 03–05) | C10: 02 | D10: =D11+D12+D13 -> 59,847.6 | E10: =E11+E12+E13 -> 58,670.9 | F10: =F11+F12+F13 -> 1,176.7
B11: в том числе бюджета: федерального | C11: 03 | D11: =E11+F11 -> 5,267.5 | E11: 5,267.5 | F11: 0.0
B12: субъекта Российской Федерации | C12: 04 | D12: =E12+F12 -> 35,332.6 | E12: 34,724.6 | F12: 608.0
B13: местного | C13: 05 | D13: 19,247.5 | E13: 18,678.8 | F13: =631.8-63.1 -> 568.7
B14: организаций | C14: 06 | D14: 21.1 | E14: 0.0 | F14: 21.1
B15: населения | C15: 07 | D15: 761.8 | E15: 614.1 | F15: 147.7
B16: внебюджетных фондов | C16: 08 | D16: 0.0 | E16: 0.0 | F16: 0.0
B17: иностранных источников | C17: 09 | D17: 0.0 | E17: 0.0 | F17: 0.0
B19: Справка 5.
B21: на начало отчетного года | C21: 10 | D21: 867.1 | F21: =D21+D9-D22-Раздел3_2!D7-Раздел3_2!D21 -> 0.0
B22: на конец отчетного года | C22: 11 | D22: 6,586.7
B24: Справка 6.
B26: Организация переведена на нормативное подушевое финансирование (код: да – 1, нет – 0)
C27: 12 | D27: 0

Sheet Раздел3_2
C2: 3.2. Расходы организации
B4: Наименование показателей | C4: № строки | D4: Всего | E4: в том числе осуществляемые
E5: за счет средств бюджетов всех уровней (субсидий) | F5: из них (из гр. 4) – за счет средств на выполнение государственного (муниципального) задания
B6: 1 | C6: 2 | D6: 3 | E6: 4 | F6: 5
B7: Расходы (сумма строк 02, 06, 13, 14) | C7: 01 | D7: =D8+D12+D19+D20 -> 49,405.7 | E7: =E8+E12+E19+E20 -> 48,804.9 | F7: =F8+F12+F19+F20 -> 45,165.4
B8: в том числе: оплата труда и начисления на выплаты по оплате труда (сумма строк 03–05) | C8: 02 | D8: =D9+D10+D11 -> 39,603.2 | E8: =E9+E10+E11 -> 39,258.6 | F8: =F9+F10+F11 -> 36,486.9
B9: заработная плата | C9: 03 | D9: 30,435.6 | E9: 30,170.9 | F9: 28,042.1
B10: прочие выплаты | C10: 04 | D10: 0.0 | E10: 0.0 | F10: 0.0
B11: начисления на выплаты по оплате труда | C11: 05 | D11: 9,167.6 | E11: 9,087.7 | F11: 8,444.8
B12: оплата работ, услуг (сумма строк 07–12) | C12: 06 | D12: =D13+D14+D15+D16+D17+D18 -> 9,180.5 | E12: =E13+E14+E15+E16+E17+E18 -> 8,935.9 | F12: =F13+F14+F15+F16+F17+F18 -> 8,290.8
B13: в том числе: услуги связи | C13: 07 | D13: 37.7 | E13: 33.0 | F13: 33.0
B14: транспортные услуги | C14: 08 | D14: 0.0 | E14: 0.0 | F14: 0.0
B15: коммунальные услуги | C15: 09 | D15: 3,131.5 | E15: 3,131.5 | F15: 3,131.5
B16: арендная плата за пользование имуществом | C16: 10 | D16: 0.0 | E16: 0.0 | F16: 0.0
B17: работы, услуги по содержанию имущества | C17: 11 | D17: 483.9 | E17: 465.5 | F17: 465.5
B18: прочие работы, услуги | C18: 12 | D18: 5,527.4 | E18: 5,305.9 | F18: 4,660.8
B19: социальное обеспечение | C19: 13 | D19: 0.0 | E19: 0.0 | F19: 0.0
B20: прочие расходы | C20: 14 | D20: 622.0 | E20: 610.4 | F20: 387.7
B21: Поступление нефинансовых активов (сумма строк 16-19) | C21: 15 | D21: =D22+D23+D24+D25 -> 5,505.2 | E21: =E22+E23+E24+E25 -> 5,484.0 | F21: =F22+F23+F24+F25 -> 4,824.4
B22: в том числе: увеличение стоимости основных средств | C22: 16 | D22: 5,265.3 | E22: 5,251.9 | F22: 4,672.7
B23: увеличение стоимости нематериальных активов | C23: 17 | D23: 0.0 | E23: 0.0 | F23: 0.0
B24: увеличение стоимости непроизведенных активов | C24: 18 | D24: 0.0 | E24: 0.0 | F24: 0.0
B25: увеличение стоимости материальных запасов | C25: 19 | D25: 239.9 | E25: 232.1 | F25: 151.7
B27: Справка 7.
B29: Наличие программы энергосбережения в организации (код: да – 1, нет – 0) | C29: 20 | D29: 0
